bitfinex/quotes_ETHUSD_20210701
["timestamp","ask_amount","ask_price","bid_price","bid_amount"]
[1625127446149,7.03706,2131.1,2130.0,6.65360502]
[1625127446250,10.8501,2131.2,2130.1,0.05400969]
[1625127446647,10.8501,2131.2,2130.0,12.27698082]
[1625127446754,10.8501,2131.2,2129.9,0.94491719]
[1625127446950,10.8501,2131.2,2130.1,6.83699758]
[1625127447050,22.08438,2131.4,2129.9,5.95491719]
[1625127447161,6.20377293,2131.3,2130.0,5.03905117]
[1625127447303,6.20377293,2131.3,2130.1,5.01]
[1625127447495,6.20377293,2131.3,2130.0,5.01]
[1625127448098,5.01,2131.1,2130.0,5.01]
[1625127448299,5.01,2131.1,2129.9,0.00618768]
[1625127448399,5.01,2131.1,2130.1,0.01259433]
[1625127449117,6.20377293,2131.3,2130.1,0.01259433]
[1625127449701,5.01,2131.1,2130.1,0.01259433]
[1625127451155,5.01,2131.1,2130.2,0.06]
[1625127452301,5.01,2131.1,2130.1,0.93985732]
[1625127452403,5.01,2131.1,2130.1,0.01259433]
[1625127452602,10.88449139,2131.1,2130.1,0.01259433]
[1625127452863,5.87449139,2131.1,2130.1,0.01259433]
[1625127453063,5.85834639,2131.1,2130.1,0.01259433]
[1625127453266,5.91282676,2131.1,2130.1,0.01259433]
[1625127453364,5.01,2131.1,2130.1,0.01259433]
[1625127453467,10.9781215,2131.1,2130.1,0.01259433]
[1625127456460,18.0153415,2131.1,2130.1,0.01259433]
[1625127456608,12.04722,2131.1,2130.1,0.01259433]
[1625127456808,10.94119776,2131.1,2130.1,0.01259433]
[1625127456908,1.6786,2131.2,2130.1,0.01259433]
[1625127457009,10.3513,2131.4,2130.1,4.41889433]
[1625127457109,10.3513,2131.4,2130.3,5.01]
[1625127457213,5.85005178,2131.5,2130.4,0.01060488]
[1625127457309,20.7124,2131.7,2130.4,0.01060488]
[1625127457408,26.61317267,2131.7,2130.5,0.08]
[1625127457506,20.7124,2131.7,2130.5,0.08]
[1625127457607,20.7124,2131.7,2130.6,0.01667212]
[1625127457710,26.76019267,2131.7,2130.6,0.01667212]
[1625127457811,26.76019267,2131.7,2130.2,0.04067217]
[1625127457908,7.03532,2131.6,2130.2,0.04067217]
[1625127458009,6.36378862,2131.5,2130.1,2.43885722]
[1625127458208,6.36378862,2131.5,2130.1,0.01259433]
[1625127458308,6.36378862,2131.5,2130.1,5.02259433]
[1625127458509,5.01,2131.3,2130.1,0.01259433]
[1625127458859,5.01,2131.5,2130.1,0.01259433]
[1625127458954,5.01,2131.0,2130.1,0.01259433]
[1625127459054,6.0711039,2131.4,2130.1,0.01259433]
[1625127459055,7.03686,2131.2,2130.1,0.01259433]
[1625127459157,12.04686,2131.2,2130.1,0.01259433]
[1625127459258,12.04686,2131.2,2130.2,0.2]
[1625127459359,5.89163657,2131.1,2130.2,0.2]
[1625127459459,5.96351313,2131.1,2130.2,0.2]
[1625127459557,5.96351313,2131.1,2130.1,0.01259433]
[1625127459858,10.21001313,2131.1,2130.1,0.01259433]
[1625127460066,5.01,2130.9,2130.1,0.01259433]
[1625127460163,10.93960018,2130.9,2130.1,0.01259433]
[1625127460361,5.92960018,2130.9,2130.1,0.01259433]
[1625127461207,8.20578,2131.0,2130.1,0.01259433]
[1625127461307,7.03718,2131.0,2130.2,0.04]
[1625127461907,1.2184,2131.1,2130.2,0.04]
[1625127462006,11.02590223,2131.1,2130.2,0.04]
[1625127462106,6.01590223,2131.1,2130.3,0.04]
[1625127462209,6.01590223,2131.1,2130.1,0.01259433]
[1625127462409,5.01,2131.2,2130.1,0.01259433]
[1625127462410,5.01,2131.0,2130.1,0.01259433]
[1625127462510,5.01,2131.1,2130.1,7.04846433]
[1625127462611,13.15521529,2131.3,2130.3,5.01]
[1625127462712,13.15521529,2131.3,2130.3,9.1884]
[1625127462812,13.15521529,2131.3,2130.3,4.1784]
[1625127462913,5.01,2131.1,2130.3,4.1784]
[1625127463011,5.01,2131.1,2130.4,0.1]
[1625127463210,5.01,2131.1,2130.1,7.04846433]
[1625127463754,6.11880529,2131.3,2130.1,7.04846433]
[1625127463859,12.04557,2131.4,2130.3,5.01]
[1625127463955,5.88194086,2131.5,2130.3,5.01]
[1625127464055,31.5731,2131.7,2130.3,5.01]
[1625127464257,31.5731,2131.7,2130.4,0.18]
[1625127464756,5.84074261,2131.6,2130.4,0.18]
[1625127464857,31.5731,2131.7,2130.4,0.18]
[1625127464959,5.85936348,2131.6,2130.4,0.18]
[1625127465207,12.89427348,2131.6,2130.5,7.03473]
[1625127465315,3.51822,2131.5,2130.1,0.01259433]
[1625127465509,7.02834583,2131.4,2130.1,0.01259433]
[1625127465617,6.44963693,2131.0,2130.1,0.01259433]
[1625127465717,9.55343693,2131.0,2130.1,0.01259433]
[1625127465820,5.01,2130.8,2130.1,0.01259433]
[1625127465920,10.17494079,2130.7,2130.1,0.01259433]
[1625127466020,10.08925384,2130.7,2130.1,0.01259433]
[1625127466119,5.01,2130.5,2130.1,0.01259433]
[1625127466219,8.2817,2130.5,2130.1,0.01259433]
[1625127466320,17.91319148,2130.4,2130.1,0.01259433]
[1625127466421,12.04865,2130.4,2130.1,0.01259433]
[1625127466622,6.16609444,2130.3,2130.1,0.01259433]
[1625127466828,5.01,2130.2,2130.1,0.01259433]
[1625127466925,40.23378072,2130.2,2130.1,0.01259433]
[1625127467025,40.38378072,2130.2,2130.1,0.01259433]
[1625127467127,40.38378072,2130.2,2130.1,4.33e-06]
[1625127467429,47.42314072,2130.2,2130.1,4.33e-06]
[1625127468228,55.42314072,2130.2,2130.1,4.33e-06]
[1625127468330,5.23208213,2130.1,2129.0,1.998]
[1625127468428,0.00677295,2129.7,2129.0,1.998]
[1625127468529,7.04206,2129.4,2128.5,17.31129]
[1625127468631,7.05269293,2129.4,2128.5,7.04139]
[1625127468731,0.08844848,2129.3,2128.5,7.04139]
[1625127469026,5.92239191,2129.3,2128.5,7.04139]
[1625127469330,0.08844848,2129.3,2128.3,9.38862]
[1625127469433,5.94585218,2129.3,2128.3,9.38862]
[1625127469530,6.58843997,2129.5,2128.3,9.38862]
[1625127469629,11.59182322,2129.5,2128.3,9.38862]
[1625127469729,11.59787176,2129.5,2128.3,9.38862]
[1625127469829,11.59182322,2129.5,2128.3,9.38862]
[1625127470134,11.59182322,2129.5,2127.9,16.36542358]
[1625127470135,11.59182322,2129.5,2128.4,0.01166799]
[1625127470277,0.40862539,2129.4,2128.4,0.01166799]
[1625127470365,0.41917019,2129.4,2128.4,0.01166799]
[1625127470466,5.42917019,2129.4,2128.4,0.01166799]
[1625127470564,12.36496849,2129.3,2128.4,0.01166799]
[1625127470668,12.65417194,2129.3,2128.4,0.01166799]
[1625127470766,5.27717988,2129.2,2128.4,0.01166799]
[1625127470870,3.52309,2128.8,2128.4,0.01166799]
[1625127471066,5.01,2128.6,2128.4,0.01166799]
[1625127471217,33.06,2128.5,2128.4,0.01166799]
[1625127471316,39.71938011,2128.5,2128.4,7.99e-06]
[1625127471718,47.71938011,2128.5,2128.4,7.99e-06]
[1625127472018,39.71938011,2128.5,2128.4,7.99e-06]
[1625127472780,39.71938011,2128.5,2126.5,10.58410799]
[1625127472886,7.04793,2127.7,2126.5,17.63149799]
[1625127472980,10.10633,2127.7,2126.5,7.04739]
[1625127473084,10.08617094,2127.7,2126.5,6.99739]
[1625127473183,10.01404722,2127.7,2126.5,6.99739]
[1625127473286,0.06365081,2127.6,2126.5,6.99739]
[1625127473384,10.07476734,2127.7,2126.5,13.72964936]
[1625127473486,10.00633,2127.7,2126.5,13.72964936]
[1625127473587,3.0584,2127.7,2126.6,0.14]
[1625127473986,3.0584,2127.7,2126.8,7.0464]
[1625127474086,3.0584,2127.7,2126.7,5.07]
[1625127474186,3.0584,2127.7,2126.7,0.06]
[1625127474287,3.0584,2127.7,2126.6,9.3952]
[1625127474385,3.0584,2127.7,2126.4,6.85]
[1625127474585,3.0584,2127.7,2126.5,0.1]
[1625127474779,3.0584,2127.7,2126.4,6.85]
[1625127474780,5.01,2127.5,2126.4,6.85]
[1625127474883,5.01,2127.5,2126.1,6.83213608]
[1625127474980,6.78777178,2127.4,2126.0,3.67924528]
[1625127475084,6.78777178,2127.4,2125.8,17.1889]
[1625127475085,14.06599015,2127.4,2126.1,7.04859]
[1625127475185,5.01,2127.2,2125.9,9.39822]
[1625127475330,5.01,2127.2,2125.8,6.85]
[1625127475331,0.13638992,2127.1,2125.8,6.85]
[1625127475557,0.13638992,2127.1,2125.9,0.06]
[1625127475636,4.37254407,2127.2,2125.9,0.06]
[1625127475637,4.366,2127.2,2125.9,0.06]
[1625127475831,4.366,2127.2,2125.9,6.6628536]
[1625127475929,2.9,2127.1,2125.9,6.6628536]
[1625127476029,4.366,2127.2,2125.9,0.06]
[1625127476130,5.01,2126.9,2125.9,0.06]
[1625127476234,5.01,2126.9,2125.8,6.85]
[1625127476331,5.01,2127.0,2125.9,6.56529176]
[1625127476434,5.01,2127.0,2125.9,6.583575]
[1625127476533,5.01,2127.0,2125.9,6.5677131]
[1625127476630,5.01,2127.0,2125.8,6.85]
[1625127477620,5.01,2127.0,2125.9,6.91236345]
[1625127477721,1.1535,2127.3,2125.9,6.91236345]
[1625127477818,5.01,2127.4,2125.9,6.91236345]
[1625127477928,5.01,2127.3,2126.0,0.16]
[1625127478118,5.01,2127.5,2126.0,0.16]
[1625127478317,5.01,2127.5,2125.9,10.008723]
[1625127478420,8.835,2127.5,2126.1,0.12]
[1625127478718,8.835,2127.5,2126.1,5.13]
[1625127478919,5.9658059,2127.4,2126.1,5.13]
[1625127479020,6.1073,2127.5,2126.2,7.0481]
[1625127479119,6.1073,2127.5,2126.2,7.0881]
[1625127479229,5.1614,2127.5,2126.4,5.01]
[1625127479728,5.1614,2127.5,2126.4,11.86]
[1625127479826,5.1614,2127.5,2126.4,19.86]
[1625127480028,5.1614,2127.5,2126.5,0.04]
[1625127480228,5.1614,2127.5,2126.4,26.90756]
[1625127480329,17.4104,2127.9,2126.4,19.86]
[1625127480435,10.3631,2127.9,2126.5,15.07059637]
[1625127480531,5.85159382,2128.1,2126.5,28.95058504]
[1625127480628,5.85159382,2128.1,2126.6,20.2]
[1625127480727,5.85159382,2128.1,2126.6,20.20981656]
[1625127480829,5.85159382,2128.1,2126.7,0.31673501]
[1625127480930,5.85159382,2128.1,2126.7,1.25753087]
[1625127481035,5.85159382,2128.1,2126.7,5.60106511]
[1625127481134,5.85159382,2128.1,2126.8,15.06]
[1625127481227,10.4686,2128.3,2126.8,15.06]
[1625127481228,16.49100983,2128.3,2126.9,0.10514654]
[1625127481328,16.49100983,2128.3,2127.4,7.04436]
[1625127481508,10.4686,2128.3,2127.4,7.04436]
[1625127482713,10.4686,2128.3,2127.6,5.01]
[1625127483149,6.09887881,2128.8,2127.7,0.04]
[1625127483244,6.09887881,2128.8,2127.7,0.00975127]
[1625127483343,6.09887881,2128.8,2127.5,0.06502596]
[1625127483444,40.871,2129.2,2127.5,0.06502596]
[1625127483445,6.13920885,2129.1,2127.5,0.06502596]
[1625127483645,30.3618,2129.2,2127.7,2.06424235]
[1625127483856,6.16891354,2129.3,2128.1,0.02508253]
[1625127483954,6.24300586,2129.3,2128.0,5.01]
[1625127484057,6.24300586,2129.3,2128.1,0.03112253]
[1625127484154,6.24300586,2129.3,2127.9,0.05288108]
[1625127484254,6.24300586,2129.3,2127.7,0.01362373]
[1625127484352,6.24300586,2129.3,2127.7,0.00731669]
[1625127485257,13.28550586,2129.3,2127.7,0.00731669]
[1625127485653,16.80775586,2129.3,2127.7,0.00731669]
[1625127485854,13.28550586,2129.3,2127.7,0.00731669]
[1625127486087,13.28550586,2129.3,2127.8,0.06]
[1625127486184,5.01,2129.1,2127.7,5.84527802]
[1625127486282,5.85030935,2129.0,2127.7,5.83783669]
[1625127486383,12.05325,2129.1,2127.9,7.04272]
[1625127486481,5.92739067,2129.0,2127.9,7.04272]
[1625127486582,3.6213,2129.0,2127.9,7.04272]
[1625127486684,3.6213,2129.0,2128.1,5.01]
[1625127486890,3.6213,2129.0,2128.2,5.01]
[1625127486987,12.0,2129.4,2128.2,5.01]
[1625127487090,5.81036464,2129.3,2128.2,5.01]
[1625127487384,12.0,2129.4,2128.3,0.08]
[1625127487587,12.0,2129.4,2128.5,7.04092]
[1625127487685,12.0,2129.4,2128.5,11.61382]
[1625127487789,12.0,2129.4,2128.7,5.01]
[1625127488083,12.0,2129.4,2128.7,5.16]
[1625127488499,5.93133588,2130.1,2129.5,2.77948445]
[1625127488596,10.7947,2130.4,2129.5,3.0766]
[1625127488694,10.7947,2130.4,2129.6,0.06480748]
[1625127488893,17.54262001,2130.9,2129.6,0.06480748]
[1625127489299,17.54262001,2130.9,2129.7,5.01]
[1625127489397,17.54262001,2130.9,2129.6,0.06480748]
[1625127489498,17.54262001,2130.9,2129.6,0.12755814]
[1625127490193,24.58046001,2130.9,2129.6,7.16515814]
[1625127490730,13.65226001,2130.9,2129.6,7.16515814]
[1625127490935,13.65226001,2130.9,2129.6,0.12755814]
[1625127491031,13.65226001,2130.9,2129.4,5.01]
[1625127491236,13.65226001,2130.9,2129.7,0.01267533]
[1625127491439,17.17220001,2130.9,2129.7,0.01267533]
[1625127491635,10.13436001,2130.9,2129.7,0.01267533]
[1625127491733,5.01,2130.7,2129.7,0.01267533]
[1625127491934,5.9276,2130.5,2129.7,0.01267533]
[1625127492038,7.27182177,2130.4,2129.7,0.01267533]
[1625127492138,7.29055244,2130.4,2129.7,0.01267533]
[1625127492240,5.01,2130.2,2129.7,0.01267533]
[1625127492337,11.44648567,2130.2,2129.7,0.01267533]
[1625127492440,7.04142,2130.1,2129.7,0.01267533]
[1625127492538,6.34731543,2130.0,2129.7,0.01267533]
[1625127492796,10.02691543,2130.0,2129.7,0.01267533]
[1625127493496,34.57626166,2129.8,2129.7,0.01267533]
[1625127493694,34.72626166,2129.8,2129.7,0.01267533]
[1625127494200,34.72626166,2129.8,2129.7,5.33e-06]
[1625127494397,47.80605061,2129.8,2129.7,5.33e-06]
[1625127495247,57.19769061,2129.8,2129.7,5.33e-06]
[1625127495451,44.11790166,2129.8,2129.7,5.33e-06]
[1625127495849,49.12790166,2129.8,2129.7,5.33e-06]
[1625127496147,44.11790166,2129.8,2129.7,5.33e-06]
[1625127496249,47.41500166,2129.8,2129.7,5.33e-06]
[1625127497386,55.41500166,2129.8,2129.7,5.33e-06]
[1625127498588,47.41500166,2129.8,2129.7,5.33e-06]
[1625127499519,49.82771042,2129.8,2129.7,5.33e-06]
[1625127500347,49.82771042,2129.8,2127.7,15.9805029]
[1625127500450,49.82771042,2129.8,2127.3,11.73602]
[1625127500451,5.01,2129.6,2127.3,11.73602]
[1625127500552,26.28959664,2129.5,2127.1,10.5577]
[1625127500649,36.44959664,2129.5,2127.1,10.5577]
[1625127500744,25.00670854,2129.2,2127.1,10.5577]
[1625127500845,5.01,2129.1,2127.1,10.5577]
[1625127500948,0.45705904,2129.0,2127.1,10.5577]
[1625127501066,31.83891952,2129.0,2126.6,10.3049]
[1625127501167,7.28544328,2128.1,2126.7,10.0192]
[1625127501245,5.01,2128.0,2126.4,6.85]
[1625127501344,13.17655971,2127.9,2126.4,6.85]
[1625127501444,12.7046453,2127.9,2126.4,6.85]
[1625127501547,0.07278913,2127.1,2126.4,6.85]
[1625127501645,4.48328913,2127.1,2126.4,6.85]
[1625127501830,10.89027261,2127.0,2126.0,10.6953]
[1625127501888,0.11558646,2126.9,2125.9,7.04965]
[1625127501988,0.11558646,2126.9,2125.7,18.5951]
[1625127502087,0.11558646,2126.9,2126.5,0.01230755]
[1625127502188,10.89027261,2127.0,2126.5,0.01230755]
[1625127502287,10.89027261,2127.0,2126.9,0.11558646]
[1625127502588,5.01,2127.0,2126.9,0.11558646]
[1625127502890,10.97916547,2127.0,2126.9,0.11558646]
[1625127502993,25.05,2126.9,2126.5,0.01230755]
[1625127503092,6.08136795,2126.8,2126.5,0.01230755]
[1625127503294,5.01,2126.8,2126.5,0.01230755]
[1625127503392,30.06,2126.9,2126.5,0.01230755]
[1625127503591,5.01,2126.9,2126.5,0.01230755]
[1625127503794,4.4105,2127.1,2126.5,0.01230755]
[1625127504129,11.46067,2127.1,2126.5,0.01230755]
[1625127504131,4.4105,2127.1,2126.5,0.01230755]
[1625127505230,5.93863293,2127.0,2126.5,0.01230755]
[1625127505327,5.6072,2127.1,2126.5,0.01230755]
[1625127505525,5.01,2126.9,2126.5,0.01230755]
[1625127505828,10.98397554,2126.9,2126.5,0.01230755]
[1625127506129,18.18472554,2126.9,2126.5,0.01230755]
[1625127506637,12.21075,2126.9,2126.5,0.01230755]
[1625127506837,5.01,2126.8,2126.5,0.01230755]
[1625127507039,5.01,2126.7,2126.5,0.01230755]
[1625127507143,11.11785139,2126.8,2126.5,0.01230755]
[1625127507640,7.05156,2126.7,2126.5,0.01230755]
[1625127507743,5.01,2126.6,2126.5,0.01230755]
[1625127507942,7.05156,2126.7,2126.5,0.01230755]
[1625127508040,6.07356147,2127.0,2126.5,0.01230755]
[1625127508574,6.07356147,2127.0,2126.5,1.01230755]
[1625127508978,9.55042,2127.2,2126.5,1.01230755]
[1625127509077,0.15,2127.2,2126.5,1.01230755]
[1625127509431,5.01,2127.0,2126.5,1.01230755]
[1625127509531,5.01,2126.9,2126.5,1.01230755]
[1625127509630,5.01,2127.0,2126.5,1.01230755]
[1625127509828,5.16,2127.2,2126.5,1.01230755]
[1625127509930,0.15,2127.2,2126.5,1.01230755]
[1625127510027,5.01,2127.0,2126.5,1.01230755]
[1625127510128,11.21422961,2127.2,2126.5,1.01230755]
[1625127510329,5.97489568,2127.1,2126.5,1.01230755]
[1625127510428,5.16,2127.2,2126.5,1.01230755]
[1625127510529,6.55030184,2127.4,2126.5,1.01230755]
[1625127510530,12.05979,2127.3,2126.5,1.01230755]
[1625127510632,5.01,2127.0,2126.5,1.01230755]
[1625127510738,5.01,2127.3,2126.5,1.01230755]
[1625127510867,29.86802,2127.8,2126.5,1.01230755]
[1625127510960,10.1105,2127.8,2126.5,1.01230755]
[1625127511052,6.42011533,2127.7,2126.6,5.09]
[1625127511156,6.42011533,2127.7,2126.6,0.08]
[1625127511258,5.01,2127.5,2126.5,1.01230755]
[1625127511356,6.42011533,2127.7,2126.5,1.01230755]
[1625127511455,10.1105,2127.8,2126.5,1.01230755]
[1625127511551,10.1105,2127.8,2126.5,0.96230755]
[1625127511655,6.11356164,2127.7,2126.5,0.96230755]
[1625127511761,6.11356164,2127.7,2126.5,5.97230755]
[1625127511951,10.1105,2127.8,2126.6,0.08]
[1625127512152,10.1105,2127.8,2126.7,5.01]
[1625127512361,10.1105,2127.8,2126.8,0.04]
[1625127512753,10.1105,2127.8,2126.6,6.71426427]
[1625127512852,10.1105,2127.8,2126.5,13.97230755]
[1625127513132,10.1105,2127.8,2126.6,6.78692499]
[1625127513189,10.1105,2127.8,2126.6,6.78961535]
[1625127513290,10.1105,2127.8,2126.7,0.06]
[1625127514193,5.01,2127.6,2126.7,0.06]
[1625127514291,5.01,2127.6,2126.5,23.36836755]
[1625127514993,5.01,2127.6,2126.5,0.96230755]
[1625127515436,5.01,2127.6,2126.6,0.04]
[1625127517237,5.01,2127.6,2126.6,7.0875]
[1625127517439,5.01,2127.6,2126.7,0.08]
[1625127517887,5.01,2127.6,2126.7,0.09054763]
[1625127518186,5.01,2127.6,2126.7,0.01054763]
[1625127518489,17.15868,2127.8,2126.7,0.01054763]
[1625127518587,5.01,2127.6,2126.7,0.01054763]
[1625127519089,5.6779,2127.7,2126.7,5.02054763]
[1625127519393,5.6779,2127.7,2126.7,0.01054763]
[1625127519693,5.6779,2127.7,2126.7,5.02054763]
[1625127520549,5.6779,2127.7,2126.7,0.01054763]
[1625127520640,5.01,2127.5,2126.7,0.01054763]
[1625127521242,7.04976,2127.3,2126.7,0.01054763]
[1625127521343,5.01,2127.1,2126.7,0.01054763]
[1625127521441,8.615,2127.1,2126.7,0.01054763]
[1625127521845,5.83265716,2127.1,2126.7,0.01054763]
[1625127521942,3.605,2127.1,2126.7,0.01054763]
[1625127522486,10.65506,2127.1,2126.7,0.01054763]
[1625127523540,5.01,2126.9,2125.8,10.0619]
[1625127523690,5.01,2126.9,2125.7,10.2713]
[1625127523742,0.29805224,2126.8,2125.4,6.85]
[1625127523893,5.01,2126.7,2125.4,6.85]
[1625127523988,0.21600087,2126.6,2125.5,0.12]
[1625127524087,4.7673,2126.6,2125.5,0.12]
[1625127524188,0.07563757,2126.5,2125.5,0.12]
[1625127524290,0.08260854,2126.5,2125.5,0.12]
[1625127524402,0.08260854,2126.5,2125.4,6.85]
[1625127524403,0.98060854,2126.5,2125.4,6.85]
[1625127524491,5.01,2126.4,2125.4,6.85]
[1625127524594,0.09532008,2126.3,2125.4,6.85]
[1625127524692,0.00631995,2126.3,2125.4,6.85]
[1625127524895,7.05239,2126.4,2125.4,6.85]
[1625127524995,2.0628,2126.5,2125.5,0.1]
[1625127525197,2.0628,2126.5,2125.6,0.16]
[1625127525692,2.0628,2126.5,2125.6,5.17]
[1625127525794,4.7673,2126.6,2125.6,0.16]
[1625127525893,4.7673,2126.6,2125.8,5.01]
[1625127526095,4.7673,2126.6,2125.6,5.01]
[1625127526192,4.7673,2126.6,2126.5,0.1]
[1625127528760,4.7673,2126.6,2126.5,0.10936941]
[1625127529245,9.40325,2127.0,2126.5,0.10936941]
[1625127529246,15.8363,2127.2,2126.5,0.10936941]
[1625127529327,10.8263,2127.2,2126.5,3.53686941]
[1625127529627,5.01,2127.5,2126.5,3.5485418]
[1625127529715,5.01,2127.3,2126.6,0.1]
[1625127529815,11.75254,2127.7,2126.6,0.1]
[1625127530112,51.5548,2128.2,2126.7,0.1]
[1625127530213,17.15796,2127.8,2126.8,0.01617963]
[1625127530316,17.15796,2127.8,2126.7,6.61431622]
[1625127530410,10.1105,2127.8,2126.7,7.95331622]
[1625127530613,10.1105,2127.8,2126.9,5.01]
[1625127530918,10.1105,2127.8,2126.9,6.34909777]
[1625127531157,10.1105,2127.8,2126.8,0.9572]
[1625127531362,17.15797,2127.8,2126.8,0.9572]
[1625127532210,5.01,2127.6,2126.8,0.9572]
[1625127532310,5.01,2127.6,2126.5,0.10936941]
[1625127532413,7.04891,2127.4,2126.5,0.10936941]
[1625127532513,10.1105,2127.8,2126.6,0.1]
[1625127532613,10.1105,2127.8,2126.6,4.3986]
[1625127532811,10.1105,2127.8,2126.7,6.46125187]
[1625127532915,10.1105,2127.8,2126.7,11.47125187]
[1625127533011,10.1105,2127.8,2126.7,6.46125187]
[1625127533114,10.1105,2127.8,2126.9,5.01]
[1625127533313,10.1105,2127.8,2127.0,6.53469612]
[1625127533460,10.1105,2127.8,2127.2,7.04619]
[1625127533565,10.1105,2127.8,2127.2,10.77299]
[1625127533655,47.21382,2128.2,2127.2,10.77299]
[1625127533755,26.75952,2128.2,2127.2,17.16833491]
[1625127533857,5.01,2128.0,2127.3,0.00704166]
[1625127533954,5.01,2128.0,2127.2,10.77299]
[1625127534155,5.01,2128.5,2127.2,10.77299]
[1625127534256,11.74658,2128.7,2127.3,0.06]
[1625127534358,11.74658,2128.7,2127.4,5.01]
[1625127534463,11.74658,2128.7,2127.5,7.10576268]
[1625127534560,7.04536,2128.5,2127.5,7.2175815]
[1625127534659,7.04536,2128.5,2127.7,5.01]
[1625127534755,7.04536,2128.5,2127.7,9.6111]
[1625127534959,9.9683,2128.8,2127.8,6.54735546]
[1625127535059,9.9683,2128.8,2127.8,11.55735546]
[1625127535258,9.9933,2128.9,2127.8,11.55735546]
[1625127535361,9.9933,2128.9,2127.9,5.01]
[1625127535458,9.9933,2128.9,2128.0,6.45435125]
[1625127535557,9.9933,2128.9,2128.0,11.46486761]
[1625127535665,9.9933,2128.9,2128.0,6.48367419]
[1625127535760,9.9933,2128.9,2128.0,11.49367419]
[1625127535860,9.9933,2128.9,2128.2,5.01]
[1625127535961,9.9933,2128.9,2128.2,8.1671]
[1625127536062,9.9933,2128.9,2128.3,0.16]
[1625127536161,9.9933,2128.9,2128.3,5.17]
[1625127536368,18.04702,2129.3,2128.4,5.01]
[1625127536461,7.04262,2129.3,2128.4,5.01]
[1625127539059,7.04262,2129.3,2128.3,10.55379]
[1625127539163,7.04262,2129.3,2128.5,5.01]
[1625127539363,5.95456924,2129.6,2128.6,0.1]
[1625127539562,5.95456924,2129.6,2128.5,5.0216185]
[1625127539658,5.95456924,2129.6,2128.7,5.01]
[1625127539760,5.95456924,2129.6,2128.5,5.0216185]
[1625127540060,12.99671924,2129.6,2128.5,0.0116185]
[1625127540792,15.52309415,2129.6,2128.5,0.0116185]
[1625127540896,18.07105934,2129.6,2128.5,0.0116185]
[1625127540991,26.07105934,2129.6,2128.5,0.0116185]
[1625127541092,5.01,2129.4,2128.5,0.0116185]
[1625127541194,7.0451,2129.1,2128.5,0.0116185]
[1625127541294,5.01,2128.9,2128.5,0.0116185]
[1625127541397,6.38583337,2129.0,2128.5,0.0116185]
[1625127541398,5.01,2128.8,2128.5,0.0116185]
[1625127541500,5.85534672,2128.7,2128.5,0.0116185]
[1625127541593,5.01,2128.8,2128.5,0.0116185]
[1625127541792,6.80781445,2129.0,2128.5,0.0116185]
[1625127541893,5.95591445,2129.0,2128.5,0.0116185]
[1625127541995,9.39347,2129.2,2128.5,0.0116185]
[1625127542193,16.54660747,2129.4,2128.5,0.0116185]
[1625127542293,5.85789039,2129.2,2128.5,0.0116185]
[1625127542416,7.37866929,2129.5,2128.5,0.0116185]
[1625127543803,7.04356,2129.1,2128.5,0.0116185]
[1625127543904,10.47726,2129.1,2128.5,0.0116185]
[1625127544007,6.27890325,2129.0,2128.5,0.0116185]
[1625127544106,5.01,2128.9,2128.5,0.0116185]
[1625127544203,6.32209252,2128.8,2128.5,0.0116185]
[1625127544310,5.01,2128.6,2128.5,0.0116185]
[1625127544408,38.77050184,2128.6,2128.5,0.0116185]
[1625127544503,32.4102,2128.6,2128.5,8.5e-06]
[1625127544953,39.60621,2128.6,2128.5,8.5e-06]
[1625127546053,39.55621,2128.6,2128.5,8.5e-06]
[1625127549592,15.80621,2128.6,2128.5,8.5e-06]
[1625127550249,10.84621,2128.6,2128.5,8.5e-06]
[1625127550357,10.69621,2128.6,2128.5,0.01009953]
[1625127550444,7.04601,2128.6,2128.5,0.01009953]
[1625127550543,14.40315,2128.9,2128.5,0.01009953]
[1625127550642,20.18595147,2128.9,2128.5,0.01009953]
[1625127550744,14.40315,2128.9,2128.5,0.01009953]
[1625127550842,5.01,2128.7,2128.5,0.01009953]
[1625127551143,7.04454,2128.8,2128.5,0.01009953]
[1625127551447,10.6414,2129.0,2128.5,0.01009953]
[1625127551549,31.2789,2129.2,2128.5,0.01009953]
[1625127551848,20.8166,2129.2,2128.5,0.01009953]
[1625127552248,5.88330805,2129.1,2128.5,0.01009953]
[1625127552350,5.86204495,2129.1,2128.5,0.01009953]
[1625127552449,5.86272926,2129.1,2128.5,0.01009953]
[1625127553050,20.8166,2129.2,2128.5,0.01009953]
[1625127553156,10.904,2129.2,2128.5,0.01009953]
[1625127553348,10.904,2129.2,2128.6,0.06]
[1625127553547,10.904,2129.2,2128.5,0.01009953]
[1625127554200,10.904,2129.2,2128.5,7.05190953]
[1625127555103,6.24567201,2129.4,2129.0,0.1]
[1625127555402,5.01,2129.5,2129.0,0.1]
[1625127555603,5.01,2129.4,2129.0,0.1]
[1625127555704,4.96,2129.4,2129.0,0.1]
[1625127555805,5.01,2129.5,2129.0,0.1]
[1625127555956,20.9228,2129.7,2129.0,0.1]
[1625127556258,10.911,2129.7,2129.0,0.1]
[1625127556661,19.75094446,2129.9,2129.0,0.1]
[1625127556765,19.75094446,2129.9,2129.0,5.11]
[1625127556865,19.75094446,2129.9,2129.0,0.1]
[1625127556958,19.75094446,2129.9,2129.1,0.1]
[1625127557161,6.85,2129.9,2129.0,5.11]
[1625127557260,6.85,2129.9,2129.0,0.1]
[1625127557464,6.85,2129.9,2129.1,0.06]
[1625127557660,6.85,2129.9,2129.0,0.1]
[1625127557764,5.86433144,2129.8,2129.0,0.1]
[1625127557865,5.86433144,2129.8,2129.1,7.03979]
[1625127557962,6.85,2129.9,2129.1,7.03979]
[1625127558306,6.85,2129.9,2129.2,0.06]
[1625127558405,5.86806914,2129.8,2129.2,0.06]
[1625127558609,5.86806914,2129.8,2129.0,0.1]
[1625127558706,6.85,2129.9,2129.0,0.1]